fUST/lending_fUST_20250719
["ID","MTS","AMOUNT","RATE_DAILY","PERIOD"]
[373091270,1752858656835,-460.0,0.00019195,2]
[373091272,1752858656845,-460.0,0.00019195,2]
[373091274,1752858656854,-460.0,0.00019195,2]
[373091276,1752858656863,-604.8,0.00019195,2]
[373091278,1752858656873,-1112.11,0.00019195,2]
[373091280,1752858656883,-151.0,0.00019196,2]
[373091282,1752858656893,-151.0,0.00019196,2]
[373091284,1752858656903,-151.0,0.00019196,2]
[373091286,1752858656912,-151.0,0.00019196,2]
[373091288,1752858656921,-460.0,0.00019196,2]
[373091290,1752858656931,-460.0,0.00019196,2]
[373091292,1752858656940,-460.0,0.00019196,2]
[373091294,1752858656949,-151.0,0.00019196,2]
[373091296,1752858656958,-151.0,0.00019196,2]
[373091298,1752858656967,-151.0,0.00019196,2]
[373091300,1752858656976,-634.72,0.00019196,2]
[373091302,1752858656986,-151.0,0.00019196,2]
[373091304,1752858656995,-460.0,0.00019196,2]
[373091306,1752858657008,-605.39,0.00019196,2]
[373091308,1752858657018,-1644.5,0.00019196,2]
[373091310,1752858657027,-460.0,0.00019196,2]
[373091312,1752858657037,-852.85,0.00019196,2]
[373091314,1752858657047,-460.0,0.00019196,2]
[373091316,1752858657056,-460.0,0.00019196,2]
[373091324,1752858657141,-2496.21,0.00019196,2]
[373091325,1752858657150,-460.0,0.00019196,2]
[373091326,1752858657159,-460.0,0.00019196,2]
[373091327,1752858657169,-460.0,0.00019196,2]
[373091328,1752858657178,-2073.39,0.00019196,2]
[373091329,1752858657187,-5605.67,0.00019196,2]
[373091330,1752858657197,-460.0,0.00019196,2]
[373091331,1752858657206,-460.0,0.00019196,2]
[373091333,1752858657215,-1731.1,0.00019197,2]
[373091335,1752858657225,-460.0,0.00019197,2]
[373091337,1752858657235,-460.0,0.00019197,2]
[373091339,1752858657244,-306.66,0.00019197,2]
[373091341,1752858657255,-484.83,0.00019197,2]
[373091343,1752858657265,-389.93773811,0.00019197,2]
[373091345,1752858657274,-477.42,0.00019197,2]
[373091347,1752858657283,-460.0,0.00019197,2]
[373091349,1752858657293,-681.11,0.00019197,2]
[373091351,1752858657303,-460.0,0.00019197,2]
[373091353,1752858657312,-2400.36,0.00019197,2]
[373091355,1752858657322,-460.0,0.00019198,2]
[373091357,1752858657331,-460.0,0.00019198,2]
[373091359,1752858657341,-4644.07,0.00019198,2]
[373091361,1752858657350,-1229.7,0.00019198,2]
[373091363,1752858657360,-736.0,0.000192,2]
[373091365,1752858657369,-500.0,0.000192,2]
[373091367,1752858657379,-1122.5,0.000192,2]
[373091369,1752858657389,-1890.89,0.000192,2]
[373091371,1752858657399,-1359.29,0.000192,2]
[373091373,1752858657408,-4623.0,0.000192,2]
[373091375,1752858657422,-1513.01,0.000192,2]
[373091377,1752858657431,-522.98,0.00019202,2]
[373091379,1752858657441,-525.98,0.00019202,2]
[373091381,1752858657450,-1021.92,0.00019202,2]
[373091383,1752858657461,-1033.81148502,0.00019264,2]
[373091385,1752858657470,-302.78807257,0.00019278,2]
[373091387,1752858657480,-302.78807257,0.00019278,2]
[373091389,1752858657490,-500.0,0.00019295,2]
[373091391,1752858657499,-500.0,0.00019295,2]
[373091393,1752858657510,-285.23085208,0.00019324,2]
[373091395,1752858657520,-168.0,0.00019343,2]
[373091397,1752858657529,-151.0,0.00019375,2]
[373091399,1752858657539,-152.588681,0.00019375,2]
[373091402,1752858657549,-152.588681,0.00019375,2]
[373091404,1752858657558,-151.0,0.00019375,2]
[373091406,1752858657568,-151.0,0.00019375,2]
[373091407,1752858657577,-151.0,0.00019375,2]
[373091409,1752858657587,-151.0,0.00019375,2]
[373091412,1752858657597,-151.0,0.00019375,2]
[373091414,1752858657607,-151.0,0.00019375,2]
[373091416,1752858657617,-2849.60510466,0.00019383,2]
[373091418,1752858657626,-168.0,0.00019396,2]
[373091420,1752858657636,-302.78807257,0.00019467,2]
[373091422,1752858657645,-302.78807257,0.00019467,2]
[373091424,1752858657655,-460.0,0.00019468,2]
[373091426,1752858657664,-460.0,0.00019468,2]
[373091428,1752858657674,-1937.58,0.00019468,2]
[373091430,1752858657683,-460.0,0.00019469,2]
[373091432,1752858657692,-602.28752327,0.00019469,2]
[373091434,1752858657701,-460.0,0.00019469,2]
[373091436,1752858657710,-460.0,0.00019469,2]
[373091438,1752858657719,-460.0,0.00019469,2]
[373091440,1752858657729,-711.11,0.00019469,2]
[373091442,1752858657739,-316.4811283,0.00019469,2]
[373091444,1752858657748,-460.0,0.00019469,2]
[373091446,1752858657760,-245.13742829,0.00019469,2]
[373091448,1752858657770,-460.0,0.00019469,2]
[373091450,1752858657780,-460.0,0.00019469,2]
[373091452,1752858657790,-925.97,0.00019469,2]
[373091454,1752858657799,-460.0,0.00019469,2]
[373091456,1752858657808,-460.0,0.00019469,2]
[373091458,1752858657818,-460.0,0.00019469,2]
[373091460,1752858657827,-460.0,0.00019469,2]
[373091462,1752858657837,-460.0,0.00019469,2]
[373091464,1752858657847,-460.0,0.00019469,2]
[373091466,1752858657857,-460.0,0.00019469,2]
[373091468,1752858657867,-311.23601428,0.00019469,2]
[373091470,1752858657876,-460.0,0.00019469,2]
[373091472,1752858657886,-460.0,0.00019469,2]
[373091474,1752858657895,-604.8,0.00019469,2]
[373091476,1752858657904,-1112.11,0.00019469,2]
[373091478,1752858657914,-151.643484,0.0001947,2]
[373091480,1752858657923,-460.0,0.0001947,2]
[373091482,1752858657933,-151.0,0.0001947,2]
[373091484,1752858657942,-151.0,0.0001947,2]
[373091486,1752858657951,-192.530784,0.0001947,2]
[373091488,1752858657961,-192.530784,0.0001947,2]
[373091490,1752858657970,-460.0,0.0001947,2]
[373091492,1752858657979,-191.666002,0.0001947,2]
[373091494,1752858657989,-191.666002,0.0001947,2]
[373091496,1752858657998,-460.0,0.0001947,2]
[373091499,1752858658009,-151.0,0.0001947,2]
[373091501,1752858658018,-634.72,0.0001947,2]
[373091503,1752858658028,-363.93618497,0.0001947,2]
[373091505,1752858658037,-605.39,0.0001947,2]
[373091508,1752858658057,-1644.5,0.0001947,2]
[373091510,1752858658070,-460.0,0.0001947,2]
[373091512,1752858658080,-852.85,0.0001947,2]
[373091514,1752858658090,-460.0,0.0001947,2]
[373091516,1752858658099,-460.0,0.0001947,2]
[373091518,1752858658109,-460.0,0.0001947,2]
[373091520,1752858658118,-2496.21,0.0001947,2]
[373091522,1752858658127,-460.0,0.0001947,2]
[373091524,1752858658137,-460.0,0.0001947,2]
[373091527,1752858658147,-2073.39,0.0001947,2]
[373091529,1752858658157,-5605.67,0.0001947,2]
[373091531,1752858658167,-460.0,0.0001947,2]
[373091533,1752858658177,-460.0,0.0001947,2]
[373091535,1752858658186,-1731.1,0.00019471,2]
[373091537,1752858658196,-460.0,0.00019471,2]
[373091539,1752858658205,-460.0,0.00019471,2]
[373091541,1752858658215,-484.83,0.00019471,2]
[373091543,1752858658225,-477.42,0.00019471,2]
[373091557,1752858658344,-460.0,0.00019471,2]
[373091559,1752858658353,-681.11,0.00019471,2]
[373091562,1752858658363,-460.0,0.00019471,2]
[373091564,1752858658373,-2400.36,0.00019471,2]
[373091566,1752858658382,-460.0,0.00019472,2]
[373091567,1752858658391,-345.09533387,0.00019472,2]
[373091569,1752858658400,-4644.07,0.00019472,2]
[373091572,1752858658410,-1229.7,0.00019472,2]
[373091574,1752858658422,-736.0,0.00019474,2]
[373091576,1752858658431,-500.0,0.00019474,2]
[373091578,1752858658440,-1122.5,0.00019474,2]
[373091580,1752858658449,-1890.89,0.00019474,2]
[373091582,1752858658458,-1359.29,0.00019474,2]
[373091584,1752858658468,-290.60249,0.00019474,2]
[373091586,1752858658478,-4623.0,0.00019474,2]
[373091588,1752858658489,-1513.01,0.00019474,2]
[373091590,1752858658498,-151.0,0.00019475,2]
[373091592,1752858658509,-250.89168,0.00019475,2]
[373091594,1752858658518,-250.89168,0.00019475,2]
[373091596,1752858658527,-522.98,0.00019476,2]
[373091598,1752858658536,-525.98,0.00019476,2]
[373091600,1752858658546,-151.0,0.00019476,2]
[373091602,1752858658555,-1021.92,0.00019476,2]
[373091604,1752858658564,-151.0,0.00019476,2]
[373091606,1752858658574,-291.369193,0.00019476,2]
[373091608,1752858658583,-291.369193,0.00019476,2]
[373091610,1752858658592,-150.0,0.00019539,2]
[373091612,1752858658601,-168.0,0.00019545,2]
[373091614,1752858658610,-500.96444325,0.00019555,2]
[373091616,1752858658620,-1000.0,0.00019555,2]
[373091618,1752858658629,-260.0,0.00019648,2]
[373091620,1752858658639,-151.0,0.0001965,2]
[373091622,1752858658649,-587.0,0.00019652,2]
[373091624,1752858658659,-1500.0,0.00019654,2]
[373091626,1752858658669,-500.0,0.00019654,2]
[373091629,1752858658679,-302.78807257,0.00019656,2]
[373091631,1752858658689,-302.78807257,0.00019656,2]
[373091633,1752858658700,-2849.60510466,0.00019659,2]
[373091635,1752858658710,-168.0,0.00019672,2]
[373091637,1752858658720,-500.0,0.000197,2]
[373091639,1752858658729,-500.0,0.00019712,2]
[373091641,1752858658738,-460.0,0.00019742,2]
[373091643,1752858658747,-460.0,0.00019742,2]
[373091645,1752858658759,-1937.58,0.00019742,2]
[373091647,1752858658768,-460.0,0.00019743,2]
[373091649,1752858658777,-460.0,0.00019743,2]
[373091651,1752858658786,-460.0,0.00019743,2]
[373091653,1752858658795,-711.11,0.00019743,2]
[373091655,1752858658805,-460.0,0.00019743,2]
[373091657,1752858658814,-460.0,0.00019743,2]
[373091659,1752858658824,-460.0,0.00019743,2]
[373091661,1752858658833,-925.97,0.00019743,2]
[373091665,1752858658856,-460.0,0.00019743,2]
[373091668,1752858658873,-460.0,0.00019743,2]
[373091671,1752858658894,-460.0,0.00019743,2]
[373091674,1752858658914,-460.0,0.00019743,2]
[373091677,1752858658934,-460.0,0.00019743,2]
[373091680,1752858658953,-460.0,0.00019743,2]
[373091683,1752858658972,-460.0,0.00019743,2]
[373091686,1752858658986,-460.0,0.00019743,2]
[373091689,1752858659007,-460.0,0.00019743,2]
[373091692,1752858659026,-604.8,0.00019743,2]
[373091695,1752858659043,-1112.11,0.00019743,2]
[373091698,1752858659057,-460.0,0.00019744,2]
[373091701,1752858659077,-460.0,0.00019744,2]
[373091704,1752858659092,-460.0,0.00019744,2]
[373091706,1752858659108,-634.72,0.00019744,2]
[373091709,1752858659122,-605.39,0.00019744,2]
[373091712,1752858659137,-1644.5,0.00019744,2]
[373091714,1752858659152,-460.0,0.00019744,2]
[373091717,1752858659167,-852.85,0.00019744,2]
[373091720,1752858659182,-460.0,0.00019744,2]
[373091722,1752858659197,-460.0,0.00019744,2]
[373091725,1752858659212,-460.0,0.00019744,2]
[373091728,1752858659227,-2496.21,0.00019744,2]
[373091730,1752858659241,-225.03069426,0.00019744,2]
[373091733,1752858659256,-460.0,0.00019744,2]
[373091735,1752858659271,-2073.39,0.00019744,2]
[373091738,1752858659286,-5605.67,0.00019744,2]
[373091740,1752858659301,-460.0,0.00019744,2]
[373091743,1752858659316,-1731.1,0.00019745,2]
[373091746,1752858659330,-460.0,0.00019745,2]
[373091748,1752858659345,-460.0,0.00019745,2]
[373091751,1752858659359,-484.83,0.00019745,2]
[373091753,1752858659373,-477.42,0.00019745,2]
[373091756,1752858659387,-460.0,0.00019745,2]
[373091758,1752858659401,-681.11,0.00019745,2]
[373091760,1752858659418,-460.0,0.00019745,2]
[373091763,1752858659433,-2400.36,0.00019745,2]
[373091766,1752858659449,-460.0,0.00019746,2]
[373091768,1752858659464,-170.21,0.00019746,2]
[373091771,1752858659479,-4644.07,0.00019746,2]
[373091774,1752858659495,-1229.7,0.00019746,2]
[373091776,1752858659511,-736.0,0.00019748,2]
[373091779,1752858659526,-500.0,0.00019748,2]
[373091782,1752858659541,-1122.5,0.00019748,2]
[373091784,1752858659554,-1890.89,0.00019748,2]
[373091787,1752858659568,-1359.29,0.00019748,2]
[373091789,1752858659584,-4623.0,0.00019748,2]
[373091792,1752858659598,-1513.01,0.00019748,2]
[373091795,1752858659613,-522.98,0.0001975,2]
[373091797,1752858659627,-525.98,0.0001975,2]
[373091809,1752858659637,-1021.92,0.0001975,2]
[373091812,1752858659749,-500.0,0.0001977,2]
[373091814,1752858659759,-168.0,0.00019778,2]
[373091816,1752858659769,-647.0,0.0001981,2]
[373091818,1752858659778,-2156.0,0.0001981,2]
[373091820,1752858659788,-968.0,0.0001981,2]
[373091822,1752858659797,-398.25,0.0001981,2]
[373091824,1752858659807,-415.75,0.0001981,2]
[373091827,1752858659816,-454.18210886,0.00019845,4]
[373091829,1752858659826,-454.18210886,0.00019845,4]
[373091831,1752858659835,-730.20637041,0.00019876,2]
[373091833,1752858659845,-800.0,0.00019914,2]
[373091835,1752858659855,-2849.60510466,0.00019934,2]
[373091837,1752858659865,-256.0,0.00019938,2]
[373091839,1752858659874,-256.0,0.0001996,2]
[373091841,1752858659884,-223.0315306,0.00019962,2]
[373091843,1752858659893,-600.0,0.00019983,2]
[373091845,1752858659902,-460.0,0.00020016,2]
[373091847,1752858659911,-460.0,0.00020016,2]
[373091849,1752858659921,-1937.58,0.00020016,2]
[373091851,1752858659930,-460.0,0.00020017,2]
[373091853,1752858659939,-460.0,0.00020017,2]
[373091855,1752858659949,-509.33121252,0.00020017,2]
[373091857,1752858659958,-711.11,0.00020017,2]
[373091859,1752858659967,-460.0,0.00020017,2]
[373091861,1752858659977,-460.0,0.00020017,2]
[373091863,1752858659986,-460.0,0.00020017,2]
[373091865,1752858659995,-925.97,0.00020017,2]
[373091867,1752858660006,-460.0,0.00020017,2]
[373091869,1752858660015,-460.0,0.00020017,2]
[373091871,1752858660025,-460.0,0.00020017,2]
[373091873,1752858660034,-460.0,0.00020017,2]
[373091875,1752858660043,-460.0,0.00020017,2]
[373091877,1752858660053,-460.0,0.00020017,2]
[373091879,1752858660063,-460.0,0.00020017,2]
[373091881,1752858660074,-460.0,0.00020017,2]
[373091883,1752858660084,-460.0,0.00020017,2]
[373091885,1752858660095,-604.8,0.00020017,2]
[373091887,1752858660105,-1112.11,0.00020017,2]
[373091890,1752858660114,-460.0,0.00020018,2]
[373091892,1752858660124,-460.0,0.00020018,2]
[373091894,1752858660134,-460.0,0.00020018,2]
[373091896,1752858660143,-634.72,0.00020018,2]
[373091898,1752858660153,-605.39,0.00020018,2]
[373091900,1752858660163,-1644.5,0.00020018,2]
[373091902,1752858660173,-460.0,0.00020018,2]
[373091904,1752858660183,-852.85,0.00020018,2]
[373091906,1752858660191,-460.0,0.00020018,2]
[373091908,1752858660202,-460.0,0.00020018,2]
[373091910,1752858660211,-2496.21,0.00020018,2]
[373091912,1752858660221,-460.0,0.00020018,2]
[373091914,1752858660231,-2073.39,0.00020018,2]
[373091916,1752858660241,-5605.67,0.00020018,2]
[373091918,1752858660251,-460.0,0.00020018,2]
[373091920,1752858660261,-1731.1,0.00020019,2]
[373091922,1752858660270,-460.0,0.00020019,2]
[373091925,1752858660280,-460.0,0.00020019,2]
[373091927,1752858660289,-484.83,0.00020019,2]
[373091929,1752858660298,-477.42,0.00020019,2]
[373091930,1752858660308,-460.0,0.00020019,2]
[373091932,1752858660317,-681.11,0.00020019,2]
[373091935,1752858660328,-460.0,0.00020019,2]
[373091937,1752858660337,-2400.36,0.00020019,2]
[373091939,1752858660346,-460.0,0.0002002,2]
[373091941,1752858660356,-4644.07,0.0002002,2]
[373091942,1752858660366,-1229.7,0.0002002,2]
[373091945,1752858660376,-256.0,0.0002002,2]
[373091947,1752858660386,-736.0,0.00020022,2]
[373091949,1752858660396,-500.0,0.00020022,2]
[373091951,1752858660405,-1122.5,0.00020022,2]
[373091953,1752858660416,-1890.89,0.00020022,2]
[373091955,1752858660430,-1359.29,0.00020022,2]
[373091957,1752858660439,-4623.0,0.00020022,2]
[373091959,1752858660450,-1513.01,0.00020022,2]
[373091961,1752858660461,-522.98,0.00020024,2]
[373091963,1752858660470,-525.98,0.00020024,2]
[373091965,1752858660480,-1021.92,0.00020024,2]
[373091967,1752858660490,-256.0,0.00020026,2]
[373091969,1752858660499,-151.0,0.00020026,2]
[373091971,1752858660511,-250.89168,0.00020026,2]
[373091973,1752858660520,-250.89168,0.00020026,2]
[373091975,1752858660530,-454.18210886,0.00020034,4]
[373091977,1752858660539,-453.68295775,0.00020034,4]
[373091979,1752858660549,-542.594989,0.00020187,2]
[373091981,1752858660559,-360.0,0.00020196,2]
[373091983,1752858660568,-335.27095244,0.00020202,2]
[373091985,1752858660578,-2849.60510466,0.0002021,2]
[373091987,1752858660587,-454.18210886,0.00020223,4]
[373091989,1752858660597,-256.0,0.00020236,2]
[373091991,1752858660607,-460.0,0.0002029,2]
[373091993,1752858660617,-460.0,0.0002029,2]
[373091995,1752858660627,-1937.58,0.0002029,2]
[373091997,1752858660636,-428.68591399,0.00020291,2]
[373091999,1752858660645,-460.0,0.00020291,2]
[373092001,1752858660655,-711.11,0.00020291,2]
[373092003,1752858660665,-460.0,0.00020291,2]
[373092005,1752858660674,-460.0,0.00020291,2]
[373092007,1752858660683,-460.0,0.00020291,2]
[373092009,1752858660693,-925.97,0.00020291,2]
[373092011,1752858660702,-460.0,0.00020291,2]
[373092013,1752858660712,-460.0,0.00020291,2]
[373092015,1752858660722,-460.0,0.00020291,2]
[373092017,1752858660731,-460.0,0.00020291,2]
[373092019,1752858660741,-460.0,0.00020291,2]
[373092021,1752858660751,-384.94577825,0.00020291,2]
[373092023,1752858660762,-460.0,0.00020291,2]
[373092026,1752858660772,-460.0,0.00020291,2]
[373092028,1752858660782,-604.8,0.00020291,2]
[373092030,1752858660791,-1112.11,0.00020291,2]
[373092031,1752858660800,-460.0,0.00020292,2]
[373092034,1752858660811,-460.0,0.00020292,2]
[373092035,1752858660820,-395.29230783,0.00020292,2]
[373092038,1752858660831,-634.72,0.00020292,2]
[373092040,1752858660840,-605.39,0.00020292,2]
[373092041,1752858660849,-1644.5,0.00020292,2]
[373092044,1752858660859,-151.0,0.00020292,2]
[373092046,1752858660869,-460.0,0.00020292,2]
[373092048,1752858660878,-852.85,0.00020292,2]
[373092049,1752858660887,-550.56687725,0.00020292,2]
[373092052,1752858660896,-460.0,0.00020292,2]
[373092054,1752858660906,-2496.21,0.00020292,2]
[373092056,1752858660916,-460.0,0.00020292,2]
[373092058,1752858660925,-151.0,0.00020292,2]
[373092060,1752858660935,-2073.39,0.00020292,2]
[373092062,1752858660945,-291.369193,0.00020292,2]
[373092064,1752858660955,-291.369193,0.00020292,2]
[373092066,1752858660964,-5605.67,0.00020292,2]
[373092068,1752858660974,-460.0,0.00020292,2]
[373092070,1752858660983,-1731.1,0.00020293,2]
[373092072,1752858660993,-460.0,0.00020293,2]
[373092074,1752858661003,-460.0,0.00020293,2]
[373092076,1752858661015,-484.83,0.00020293,2]
[373092078,1752858661025,-477.42,0.00020293,2]
[373092080,1752858661034,-460.0,0.00020293,2]
[373092082,1752858661043,-681.11,0.00020293,2]
[373092084,1752858661053,-460.0,0.00020293,2]
[373092086,1752858661063,-2400.36,0.00020293,2]
[373092088,1752858661072,-151.0,0.00020294,2]
[373092090,1752858661081,-151.0,0.00020294,2]
[373092092,1752858661091,-192.530784,0.00020294,2]
[373092094,1752858661100,-192.530784,0.00020294,2]
[373092096,1752858661110,-191.666002,0.00020294,2]
[373092098,1752858661119,-191.666002,0.00020294,2]
[373092100,1752858661129,-460.0,0.00020294,2]
[373092102,1752858661138,-223.615584,0.00020294,2]
[373092104,1752858661148,-151.0,0.00020294,2]
[373092106,1752858661157,-4644.07,0.00020294,2]
[373092108,1752858661166,-561.03713056,0.00020294,2]
[373092133,1752858661395,-460.0,0.00017553,2]
[373092136,1752858661406,-668.66286944,0.00020294,2]
[373092137,1752858661419,-163.445326,0.00020295,2]
[373092139,1752858661429,-152.588681,0.00020295,2]
[373092141,1752858661438,-152.588681,0.00020295,2]
[373092143,1752858661447,-151.0,0.00020295,2]
[373092145,1752858661457,-151.0,0.00020295,2]
[373092147,1752858661466,-151.0,0.00020295,2]
[373092149,1752858661478,-151.0,0.00020295,2]
[373092151,1752858661489,-151.0,0.00020295,2]
[373092153,1752858661498,-151.0,0.00020295,2]
[373092155,1752858661509,-736.0,0.00020296,2]
[373092157,1752858661519,-500.0,0.00020296,2]
[373092159,1752858661528,-1122.5,0.00020296,2]
[373092161,1752858661537,-1890.89,0.00020296,2]
[373092163,1752858661547,-1359.29,0.00020296,2]
[373092165,1752858661556,-4623.0,0.00020296,2]
[373092167,1752858661566,-1513.01,0.00020296,2]
[373092169,1752858661575,-522.98,0.00020298,2]
[373092171,1752858661584,-525.98,0.00020298,2]
[373092173,1752858661593,-1021.92,0.00020298,2]
[373092175,1752858661602,-500.14087498,0.0002032,2]
[373092177,1752858661611,-5888.0,0.00020393,2]
[373092179,1752858661621,-256.0,0.00020395,2]
[373092181,1752858661630,-454.18210886,0.00020412,4]
[373092183,1752858661639,-2849.60510466,0.00020486,3]
[373092185,1752858661649,-500.0,0.0002052,2]
[373092187,1752858661658,-250.0,0.00020521,2]
[373092189,1752858661667,-250.0,0.00020529,2]
[373092191,1752858661677,-224.39,0.00020529,2]
[373092193,1752858661686,-150.169,0.00020529,2]
[373092195,1752858661695,-216.543,0.00020529,2]
[373092197,1752858661705,-271.62,0.00020529,2]
[373092199,1752858661715,-250.0,0.00020529,2]
[373092201,1752858661725,-150.584,0.00020529,2]
[373092203,1752858661734,-259.894,0.00020529,2]
[373092205,1752858661743,-244.0,0.00020529,2]
[373092207,1752858661752,-218.2,0.00020529,2]
[373092209,1752858661762,-248.78647143,0.00020564,2]
[373092211,1752858661772,-460.0,0.00020564,2]
[373092213,1752858661781,-1937.58,0.00020564,2]
[373092215,1752858661791,-460.0,0.00020565,2]
[373092217,1752858661800,-711.11,0.00020565,2]
[373092219,1752858661810,-460.0,0.00020565,2]
[373092221,1752858661819,-460.0,0.00020565,2]
[373092223,1752858661828,-460.0,0.00020565,2]
[373092225,1752858661837,-925.97,0.00020565,2]
[373092227,1752858661846,-460.0,0.00020565,2]
[373092229,1752858661855,-460.0,0.00020565,2]
[373092231,1752858661864,-460.0,0.00020565,2]
[373092233,1752858661873,-168.25393404,0.00020565,2]
[373092235,1752858661882,-460.0,0.00020565,2]
[373092237,1752858661891,-460.0,0.00020565,2]
[373092239,1752858661900,-460.0,0.00020565,2]
[373092241,1752858661909,-604.8,0.00020565,2]
[373092243,1752858661919,-1112.11,0.00020565,2]
[373092245,1752858661928,-460.0,0.00020566,2]
[373092247,1752858661937,-460.0,0.00020566,2]
[373092249,1752858661946,-634.72,0.00020566,2]
[373092251,1752858661955,-605.39,0.00020566,2]
[373092253,1752858661964,-1644.5,0.00020566,2]
[373092255,1752858661974,-852.85,0.00020566,2]
[373092257,1752858661983,-460.0,0.00020566,2]
[373092259,1752858661993,-460.0,0.00020566,2]
[373092261,1752858662003,-2496.21,0.00020566,2]
[373092263,1752858662014,-460.0,0.00020566,2]
[373092265,1752858662024,-2073.39,0.00020566,2]
[373092266,1752858662033,-5605.67,0.00020566,2]
[373092268,1752858662042,-460.0,0.00020566,2]
[373092270,1752858662051,-1731.1,0.00020567,2]
[373092272,1752858662060,-460.0,0.00020567,2]
[373092274,1752858662069,-460.0,0.00020567,2]
[373092276,1752858662078,-484.83,0.00020567,2]
[373092278,1752858662087,-477.42,0.00020567,2]
[373092280,1752858662097,-460.0,0.00020567,2]
[373092282,1752858662106,-681.11,0.00020567,2]
[373092284,1752858662115,-460.0,0.00020567,2]
[373092286,1752858662124,-460.0,0.00020568,2]
[373092288,1752858662132,-4644.07,0.00020568,2]
[373092290,1752858662142,-1229.7,0.00020568,2]
[373092292,1752858662152,-736.0,0.0002057,2]
[373092294,1752858662161,-500.0,0.0002057,2]
[373092296,1752858662171,-1122.5,0.0002057,2]
[373092298,1752858662181,-1890.89,0.0002057,2]
[373092300,1752858662190,-1359.29,0.0002057,2]
[373092302,1752858662200,-4623.0,0.0002057,2]
[373092304,1752858662210,-1513.01,0.0002057,2]
[373092306,1752858662219,-522.98,0.00020572,2]
[373092308,1752858662228,-525.98,0.00020572,2]
[373092310,1752858662238,-1021.92,0.00020572,2]
[373092312,1752858662247,-159.7855054,0.00020575,2]
[373092314,1752858662258,-256.0,0.00020584,2]
[373092316,1752858662267,-454.18210885,0.00020601,4]
[373092318,1752858662277,-5888.0,0.00020605,2]
[373092320,1752858662286,-170.21,0.00020691,2]
[373092321,1752858662295,-5888.0,0.00020694,2]
[373092323,1752858662304,-1172.143583,0.00020698,8]
[373092325,1752858662314,-460.0,0.00020744,2]
[373092327,1752858662323,-151.0,0.00020762,2]
[373092329,1752858662334,-250.89168,0.00020762,2]
[373092332,1752858662343,-250.89168,0.00020762,2]
[373092334,1752858662353,-2849.60510466,0.00020762,3]
[373092336,1752858662363,-256.0,0.00020765,2]
[373092337,1752858662372,-151.0,0.00020796,2]
[373092339,1752858662382,-151.0,0.00020796,2]
[373092342,1752858662391,-500.0,0.00020811,2]
[373092343,1752858662401,-170.21,0.00020813,2]
[373092345,1752858662412,-313.41,0.00020838,2]
[373092347,1752858662422,-1937.58,0.00020838,2]
[373092349,1752858662432,-460.0,0.00020839,2]
[373092351,1752858662441,-711.11,0.00020839,2]
[373092353,1752858662450,-396.35341483,0.00020839,2]
[373092355,1752858662460,-460.0,0.00020839,2]
[373092357,1752858662469,-460.0,0.00020839,2]